[Event "GER-chT States Women 2022"]
[Site "Braunfels"]
[Date "2022.06.17"]
[Round "2.22"]
[White "Malachowski, Margrit"]
[Black "Kosovska, Olena"]
[Result "1-0"]
[ECO "A06"]
[WhiteElo "2061"]
[BlackElo "1827"]
[Annotator "NA RC"]
[PlyCount "169"]
[EventDate "2022.06.15"]
[EventType "swiss"]
[EventCountry "GER"]
[SourceTitle "playchess.com"]
[Source "ChessBase"]
[SourceQuality "1"]
[TimeControl "40/5400+30:1800+30"]

1. Nf3 {[%emt 0:00:02]} d5 {[%emt 0:00:10]} 2. b3 {[%emt 0:02:30]} Nf6 {[%emt 0:01:03]} 3. Bb2 {[%emt 0:00:23]} e6 {[%emt 0:00:26]} 4. e3 {[%emt 0:00:57]} c5 {[%emt 0:00:41]} 5. c4 {[%emt 0:01:54]} Nc6 {[%emt 0:01:20]} 6. d3 {[%emt 0:13:27]} Bd6 {[%emt 0:04:54]} 7. Nbd2 {[%emt 0:01:18]} O-O {[%emt 0:00:22]} 8. Be2 {[%emt 0:00:19]} b6 {[%emt 0:01:23]} 9. O-O {[%emt 0:00:47]} Bb7 {[%emt 0:00:12]} 10. Rc1 {[%emt 0:01:59]} Rc8 {[%emt 0:00:42]} 11. h3 {[%emt 0:00:51]} Bb8 {[%emt 0:01:11]} 12. cxd5 {[%emt 0:06:39]} Nxd5 {[%emt 0:00:57]} 13. d4 {[%emt 0:01:24]} cxd4 {[%emt 0:00:55]} 14. Nxd4 {[%emt 0:00:51]} Nxd4 {[%emt 0:00:41]} 15. Bxd4 {[%emt 0:00:16]} Rxc1 {[%emt 0:20:03]} 16. Qxc1 {[%emt 0:00:16] [#]} Nb4 {[%emt 0:10:42]} (16... Nf4 $1 $15 17. exf4 Qxd4) 17. Nf3 {[%emt 0:18:12]} Nc6 {[%emt 0:28:50]} 18. Bb2 {[%emt 0:09:35]} Qc7 {[%emt 0:07:22]} 19. g3 {[%emt 0:04:16]} Rd8 {[%emt 0:02:33]} 20. Rd1 {[%emt 0:03:31]} Rxd1+ {[%emt 0:04:10]} 21. Qxd1 {[%emt 0:00:08]} f6 {[%emt 0:01:44]} 22. a3 {[%emt 0:07:05]} Qe7 $11 {[%emt 0:01:43]} 23. b4 {[%emt 0:03:13]} a6 {[%emt 0:05:35]} 24. Nd4 {[%emt 0:07:21]} Ne5 {[%emt 0:01:27]} 25. f4 {[%emt 0:00:07]} Nc6 {[%emt 0:00:35]} 26. Bc4 {[%emt 0:01:56]} Nxd4 {[%emt 0:01:47]} 27. Qxd4 {[%emt 0:01:04]} b5 {[%emt 0:01:01]} 28. Bb3 {[%emt 0:02:53]} Kf8 {[%emt 0:00:32]} 29. Qb6 {[%emt 0:01:14]} Kf7 {[%emt 0:00:52]} 30. Bd4 {[%emt 0:00:53]} f5 {[%emt 0:01:04]} 31. Kf2 {[%emt 0:00:52]} Qd7 {[%emt 0:00:28]} 32. Ke2 {[%emt 0:01:13]} Bd6 {[%emt 0:00:13]} 33. Bc5 {[%emt 0:01:59]} Bxc5 {[%emt 0:00:30]} 34. Qxc5 {[%emt 0:00:07]} Qc6 {[%emt 0:00:29]} 35. Qxc6 {[%emt 0:00:11]} Bxc6 {[%emt 0:00:03]} 36. Kd3 {[%emt 0:00:26]} Ke7 {[%emt 0:00:11]} 37. Kd4 {[%emt 0:00:18]} Kd6 {[%emt 0:00:06]} 38. Bc2 {[%emt 0:00:43]} Bg2 {[%emt 0:00:30]} 39. h4 {[%emt 0:02:46]} g6 {[%emt 0:01:27]} 40. e4 {[%emt 0:02:53]} Bf1 {[%emt 0:00:40]} 41. e5+ {[%emt 0:31:07]} Kc6 {[%emt 0:30:07]} 42. Bb3 {[%emt 0:00:12]} Kd7 {[%emt 0:00:00]} 43. Kc5 {[%emt 0:00:00]} h6 {[%emt 0:00:00]} 44. Kb6 {[%emt 0:00:00]} Bc4 {[%emt 0:00:00]} 45. Bd1 {[%emt 0:00:00]} Bd3 {[%emt 0:00:00]} 46. Kxa6 {[%emt 0:00:00]} Kc6 {[%emt 0:00:00]} 47. Bf3+ {[%emt 0:00:00]} Kc7 {[%emt 0:00:00]} 48. Ka5 {[%emt 0:00:00]} Bc4 {[%emt 0:00:00]} 49. a4 {[%emt 0:00:00]} bxa4 {[%emt 0:00:00]} 50. Kxa4 {[%emt 0:00:00]} Kb6 {[%emt 0:00:00]} 51. Bd1 {[%emt 0:00:00]} Bb5+ {[%emt 0:00:00]} 52. Kb3 {[%emt 0:00:00]} Bf1 {[%emt 0:00:00]} 53. Kc3 {[%emt 0:00:00]} Bb5 {[%emt 0:00:00]} 54. g4 {[%emt 0:00:00]} fxg4 {[%emt 0:00:00]} 55. Bxg4 {[%emt 0:00:00]} Bd7 {[%emt 0:00:00]} 56. Be2 {[%emt 0:00:00]} Kc6 {[%emt 0:01:41]} 57. Bd1 {[%emt 0:00:00]} Kb5 {[%emt 0:01:10]} 58. Bb3 {[%emt 0:00:15]} Kb6 {[%emt 0:00:28]} 59. Bc4 {[%emt 0:00:12]} Kc6 {[%emt 0:00:26]} 60. Kd4 {[%emt 0:01:55]} Kb6 {[%emt 0:00:16]} 61. Ke3 {[%emt 0:03:34]} Kc6 {[%emt 0:00:15]} 62. Kf3 {[%emt 0:00:19]} h5 {[%emt 0:00:05]} 63. Ke3 {[%emt 0:00:14]} Kb6 {[%emt 0:00:06]} 64. Kd4 {[%emt 0:00:06]} Kc6 {[%emt 0:00:14]} 65. Kc3 {[%emt 0:00:19]} Kb6 {[%emt 0:00:15]} 66. Kb3 {[%emt 0:00:16]} Kc6 {[%emt 0:00:08]} 67. Ka3 {[%emt 0:00:04]} Kb6 {[%emt 0:01:31]} 68. Bb3 {[%emt 0:00:15]} Kc7 {[%emt 0:04:57]} 69. Ba4 {[%emt 0:00:20]} Bc8 {[%emt 0:00:06]} 70. Be8 {[%emt 0:00:11]} Bb7 {[%emt 0:00:13]} 71. Bxg6 {[%emt 0:00:12]} Bf3 {[%emt 0:00:03]} 72. Bf7 {[%emt 0:02:17]} Bg4 {[%emt 0:00:03]} 73. b5 {[%emt 0:00:34]} Kd7 {[%emt 0:03:07]} 74. Kb4 {[%emt 0:00:11]} Ke7 {[%emt 0:01:00]} 75. b6 {[%emt 0:00:25]} Kd7 {[%emt 0:00:15]} 76. Kc5 {[%emt 0:00:08]} Bf3 {[%emt 0:00:15]} 77. Bg6 {[%emt 0:00:33]} Bg4 {[%emt 0:01:09]} 78. Be4 {[%emt 0:00:10]} Be2 {[%emt 0:00:43]} 79. b7 {[%emt 0:00:30]} Kc7 {[%emt 0:00:05]} 80. b8=Q+ {[%emt 0:00:30]} Kxb8 {[%emt 0:00:05]} 81. Kd6 {[%emt 0:00:03]} Bg4 {[%emt 0:00:17]} 82. Bc6 {[%emt 0:00:40]} Kc8 {[%emt 0:02:12]} 83. Bd7+ {[%emt 0:00:08]} Kd8 {[%emt 0:00:03]} 84. Bxe6 {[%emt 0:00:15]} Be2 {[%emt 0:00:06]} 85. Bf7 {[%emt 0:00:31]} 1-0

[Event "GER-chT States Women 2022"]
[Site "Braunfels"]
[Date "2022.06.17"]
[Round "2.23"]
[White "Neumeyer, Hannelore"]
[Black "Landenberger, Anja Kathrin"]
[Result "0-1"]
[ECO "D00"]
[WhiteElo "1877"]
[BlackElo "1767"]
[Annotator "NA RC"]
[PlyCount "74"]
[EventDate "2022.06.15"]
[EventType "swiss"]
[EventCountry "GER"]
[SourceTitle "playchess.com"]
[Source "ChessBase"]
[SourceQuality "1"]
[TimeControl "40/5400+30:1800+30"]

1. d4 {[%emt 0:00:06]} d5 {[%emt 0:01:21]} 2. e4 {[%emt 0:01:15]} dxe4 {[%emt 0:02:00]} 3. Nc3 {[%emt 0:00:11]} Bf5 {[%emt 0:12:27]} 4. f3 {[%emt 0:01:19]} exf3 {[%emt 0:04:09]} 5. Qxf3 {[%emt 0:10:12]} Qc8 {[%emt 0:05:02]} 6. Bc4 {[%emt 0:03:33]} Nf6 {[%emt 0:03:06]} 7. Nge2 {[%emt 0:08:48]} Bxc2 {[%emt 0:08:36]} 8. O-O {[%emt 0:01:09]} Nbd7 {[%emt 0:03:00]} 9. g4 $2 {[%emt 0:18:01]} (9. Bf4 $11 a6 10. Rac1) 9... Nb6 {[%emt 0:03:35]} 10. Bxf7+ {[%emt 0:13:56]} Kxf7 {[%emt 0:01:03]} 11. g5 {[%emt 0:00:08]} c6 {[%emt 0:09:39]} 12. Be3 {[%emt 0:10:08]} Ke8 {[%emt 0:06:10]} 13. gxf6 {[%emt 0:03:01]} gxf6 {[%emt 0:04:00]} 14. Rac1 {[%emt 0:02:08]} Bg6 {[%emt 0:19:00]} 15. d5 {[%emt 0:00:54]} Qd7 {[%emt 0:03:50]} 16. Bxb6 {[%emt 0:08:47]} axb6 {[%emt 0:00:20]} 17. dxc6 {[%emt 0:00:19]} bxc6 $17 {[%emt 0:03:40]} 18. Rfd1 {[%emt 0:02:19]} Qb7 {[%emt 0:03:40]} 19. Nd4 {[%emt 0:01:01]} Bh6 {[%emt 0:01:30]} 20. Re1 {[%emt 0:09:20]} Bxc1 {[%emt 0:01:00]} 21. Qxf6 {[%emt 0:00:25]} Rf8 {[%emt 0:00:23]} 22. Qxc6+ {[%emt 0:03:11]} Qxc6 {[%emt 0:00:08]} 23. Nxc6 {[%emt 0:00:02]} Bg5 {[%emt 0:00:22]} 24. Nd5 {[%emt 0:00:19]} Kd7 {[%emt 0:02:08]} 25. Ne5+ {[%emt 0:00:31]} Kd6 {[%emt 0:01:03]} 26. Nxb6 {[%emt 0:00:23]} Rxa2 {[%emt 0:01:06]} 27. Nec4+ {[%emt 0:00:33]} Kc6 {[%emt 0:00:36]} 28. Re6+ {[%emt 0:00:38]} Kb7 {[%emt 0:00:04]} 29. Nd7 {[%emt 0:01:09]} Ra1+ {[%emt 0:00:47]} 30. Kg2 {[%emt 0:00:13]} Rff1 {[%emt 0:00:56]} 31. Nc5+ {[%emt 0:00:40]} Kc7 {[%emt 0:00:08]} 32. Na6+ {[%emt 0:00:54]} Kd7 {[%emt 0:00:39]} 33. Nc5+ {[%emt 0:00:15]} Ke8 {[%emt 0:00:22]} 34. Re5 {[%emt 0:00:52]} Rg1+ {[%emt 0:00:35]} 35. Kh3 {[%emt 0:00:16]} Bf6 {[%emt 0:00:16]} 36. Nd6+ {[%emt 0:00:50]} Kf8 {[%emt 0:00:14]} 37. Nd7+ {[%emt 0:00:41]} Kg7 {[%emt 0:00:09]} 0-1

[Event "GER-chT States Women 2022"]
[Site "Braunfels"]
[Date "2022.06.17"]
[Round "2.24"]
[White "Kuehnel, Jutta"]
[Black "Gottschall, Ina"]
[Result "1-0"]
[ECO "B06"]
[WhiteElo "1547"]
[BlackElo "1612"]
[Annotator "NA RC"]
[PlyCount "92"]
[EventDate "2022.06.15"]
[EventType "swiss"]
[EventCountry "GER"]
[SourceTitle "playchess.com"]
[Source "ChessBase"]
[SourceQuality "1"]
[TimeControl "40/5400+30:1800+30"]

1. e4 {[%emt 0:00:02]} g6 {[%emt 0:00:10]} 2. d4 {[%emt 0:00:11]} Bg7 {[%emt 0:00:13]} 3. Nc3 {[%emt 0:00:43]} d6 {[%emt 0:00:12]} 4. Be3 {[%emt 0:00:40]} Nf6 {[%emt 0:00:27]} 5. Be2 {[%emt 0:01:17]} O-O {[%emt 0:00:41]} 6. f4 {[%emt 0:10:06]} Na6 {[%emt 0:03:21]} 7. e5 {[%emt 0:08:19]} dxe5 {[%emt 0:01:36]} 8. dxe5 {[%emt 0:01:38]} Nd7 {[%emt 0:02:38]} 9. Bxa6 {[%emt 0:17:07]} bxa6 {[%emt 0:00:17]} 10. Qf3 {[%emt 0:01:20]} Rb8 11. b3 {[%emt 0:01:44]} Bb7 {[%emt 0:10:43]} 12. Qe2 {[%emt 0:02:43]} Nb6 {[%emt 0:05:11]} 13. Rd1 {[%emt 0:01:17]} Qc8 {[%emt 0:01:39]} 14. Nf3 {[%emt 0:00:55]} f6 {[%emt 0:21:10]} 15. exf6 {[%emt 0:16:36]} exf6 {[%emt 0:06:24]} 16. O-O {[%emt 0:01:09]} Re8 {[%emt 0:02:09]} 17. Qf2 {[%emt 0:02:14]} Qg4 {[%emt 0:04:15]} 18. Rd3 {[%emt 0:07:45]} Rbd8 {[%emt 0:02:48]} 19. Rfd1 {[%emt 0:03:31]} Rxd3 {[%emt 0:00:21]} 20. Rxd3 {[%emt 0:00:55]} Bxf3 {[%emt 0:00:11]} 21. Qxf3 {[%emt 0:00:05]} Qxf3 {[%emt 0:00:07]} 22. gxf3 {[%emt 0:00:27]} f5 {[%emt 0:02:47]} 23. Ne2 {[%emt 0:09:02]} c6 {[%emt 0:07:10]} 24. c4 {[%emt 0:00:54]} Nc8 {[%emt 0:04:00]} 25. Kf2 {[%emt 0:00:17]} Bf6 {[%emt 0:04:12]} 26. Rd7 {[%emt 0:00:47]} Bh4+ {[%emt 0:03:44]} 27. Ng3 {[%emt 0:00:13]} Bd8 {[%emt 0:04:19]} 28. Bd4 {[%emt 0:01:37]} Be7 {[%emt 0:04:37]} 29. Be3 {[%emt 0:03:14]} Bd6 {[%emt 0:02:59]} 30. Ne2 {[%emt 0:00:37]} c5 {[%emt 0:01:25]} 31. Nc3 {[%emt 0:00:20]} Be7 {[%emt 0:00:48]} 32. Nd5 {[%emt 0:00:13]} Bh4+ {[%emt 0:01:15]} 33. Ke2 {[%emt 0:03:11]} Nb6 34. Rxa7 {[%emt 0:03:02]} Nxd5 {[%emt 0:02:22]} 35. cxd5 {[%emt 0:00:02]} Bf6 {[%emt 0:00:49]} 36. Kd3 {[%emt 0:00:46]} Rd8 {[%emt 0:02:00]} 37. Kc4 {[%emt 0:00:18]} Rc8 {[%emt 0:00:38]} 38. Rxa6 {[%emt 0:00:20]} Bd4 {[%emt 0:00:37]} 39. Bxd4 {[%emt 0:01:04]} cxd4+ {[%emt 0:00:04]} 40. Rc6 {[%emt 0:00:40]} Re8 {[%emt 0:00:14]} 41. Re6 {[%emt 0:03:35]} Rc8+ {[%emt 0:00:33]} 42. Kxd4 {[%emt 0:00:42]} Rc2 {[%emt 0:00:08]} 43. d6 {[%emt 0:10:42]} Rxa2 {[%emt 0:00:35]} 44. Ke5 {[%emt 0:00:32]} Kf7 {[%emt 0:01:48]} 45. Re7+ {[%emt 0:00:24]} Kg8 {[%emt 0:02:20]} 46. Kf6 {[%emt 0:03:23]} Ra3 1-0

[Event "GER-chT States Women 2022"]
[Site "Braunfels"]
[Date "2022.06.17"]
[Round "2.25"]
[White "Koehler, Inken"]
[Black "Krasnopeyeva, Julia"]
[Result "1-0"]
[ECO "B41"]
[WhiteElo "2002"]
[BlackElo "1939"]
[Annotator "NA RC"]
[PlyCount "71"]
[EventDate "2022.06.15"]
[EventType "swiss"]
[EventCountry "GER"]
[SourceTitle "playchess.com"]
[Source "ChessBase"]
[SourceQuality "1"]
[TimeControl "40/5400+30:1800+30"]

1. e4 {[%emt 0:00:04]} c5 {[%emt 0:00:05]} 2. Nf3 {[%emt 0:00:04]} e6 {[%emt 0:00:06]} 3. d4 {[%emt 0:00:06]} cxd4 {[%emt 0:00:07]} 4. Nxd4 {[%emt 0:00:04]} a6 {[%emt 0:00:17]} 5. c4 {[%emt 0:00:11]} Qc7 {[%emt 0:01:53]} 6. Nc3 {[%emt 0:00:32]} Nf6 {[%emt 0:01:24]} 7. Be2 {[%emt 0:00:51]} Bc5 {[%emt 0:01:03]} 8. Be3 {[%emt 0:02:54]} O-O {[%emt 0:04:58]} 9. O-O {[%emt 0:01:05]} b6 {[%emt 0:07:33]} 10. Kh1 {[%emt 0:08:08]} Bb7 {[%emt 0:00:45]} 11. f3 {[%emt 0:00:23]} Bd6 {[%emt 0:03:34]} 12. Ndb5 {[%emt 0:03:29]} axb5 {[%emt 0:01:33]} 13. Nxb5 {[%emt 0:00:04]} Qd8 {[%emt 0:07:12]} 14. Nxd6 {[%emt 0:03:43]} Ba6 {[%emt 0:03:14]} 15. b4 {[%emt 0:01:49]} Qe7 {[%emt 0:04:59]} 16. Bxb6 {[%emt 0:03:05]} Ne8 {[%emt 0:00:29]} 17. Bc5 {[%emt 0:00:43]} Qd8 {[%emt 0:00:34]} 18. b5 {[%emt 0:03:38]} Qc7 {[%emt 0:02:36]} 19. Qd4 {[%emt 0:04:15]} ({Weaker is} 19. bxa6 Qxc5 20. Nb5 Rxa6 $16) 19... Bb7 {[%emt 0:02:41]} 20. e5 $18 {[%emt 0:06:12]} Nxd6 {[%emt 0:01:29]} 21. Bxd6 {[%emt 0:01:13]} Qa5 {[%emt 0:01:34]} 22. Bxf8 {[%emt 0:01:59]} Kxf8 {[%emt 0:00:05]} 23. Qd6+ {[%emt 0:00:03]} Ke8 {[%emt 0:00:44]} 24. a4 {[%emt 0:03:59]} Bc8 {[%emt 0:01:32]} 25. Bd3 {[%emt 0:01:44]} Bb7 {[%emt 0:00:40]} 26. Rfd1 {[%emt 0:00:37]} h6 {[%emt 0:00:19]} 27. Bc2 {[%emt 0:01:38]} Qc3 {[%emt 0:02:05]} 28. Bd3 {[%emt 0:03:55]} Qa5 {[%emt 0:02:33]} 29. Be2 {[%emt 0:00:07]} Bc8 {[%emt 0:00:42]} 30. Rdb1 {[%emt 0:03:29]} Bb7 {[%emt 0:01:43]} 31. Bd3 {[%emt 0:00:14]} Qc3 {[%emt 0:00:44]} 32. Qc7 {[%emt 0:04:20]} Bxf3 {[%emt 0:00:30]} 33. gxf3 {[%emt 0:00:08]} Qxd3 {[%emt 0:00:19]} 34. Qb7 {[%emt 0:00:29]} d5 {[%emt 0:03:42]} 35. exd6 {[%emt 0:00:40]} Rxa4 {[%emt 0:03:39]} 36. Qe7# {[%emt 0:00:05]} 1-0

[Event "GER-chT States Women 2022"]
[Site "Braunfels"]
[Date "2022.06.17"]
[Round "2.26"]
[White "Mader, Lena"]
[Black "Braeutigam, Irina"]
[Result "0-1"]
[ECO "A25"]
[WhiteElo "1789"]
[BlackElo "2013"]
[Annotator "NA RC"]
[PlyCount "84"]
[EventDate "2022.06.15"]
[EventType "swiss"]
[EventCountry "GER"]
[SourceTitle "playchess.com"]
[Source "ChessBase"]
[SourceQuality "1"]
[TimeControl "40/5400+30:1800+30"]

1. c4 {[%emt 0:00:03]} e5 {[%emt 0:00:17]} 2. g3 {[%emt 0:00:24]} Nc6 {[%emt 0:00:22]} 3. Bg2 {[%emt 0:00:16]} g6 {[%emt 0:00:13]} 4. Nc3 {[%emt 0:00:47]} Bg7 {[%emt 0:00:14]} 5. Nf3 {[%emt 0:01:13]} d6 {[%emt 0:01:00]} 6. d3 {[%emt 0:00:35]} f5 {[%emt 0:01:07]} 7. Rb1 {[%emt 0:09:56]} a5 {[%emt 0:01:51]} 8. a3 {[%emt 0:01:07]} Nf6 {[%emt 0:00:18]} 9. O-O {[%emt 0:07:53]} O-O {[%emt 0:00:53]} 10. b4 {[%emt 0:02:09]} axb4 {[%emt 0:00:45]} 11. axb4 {[%emt 0:00:01]} Qe8 {[%emt 0:03:36]} 12. b5 {[%emt 0:04:15]} Nd8 {[%emt 0:01:33]} 13. Qb3 {[%emt 0:02:25]} Kh8 {[%emt 0:04:57]} 14. e3 {[%emt 0:14:02]} Ne6 $1 {[%emt 0:08:04]} 15. Bb2 {[%emt 0:08:07]} g5 {[%emt 0:10:45]} 16. Nd2 {[%emt 0:05:26]} f4 {[%emt 0:22:33]} 17. exf4 {[%emt 0:00:43]} gxf4 {[%emt 0:00:47]} 18. Nd5 {[%emt 0:01:06]} Qh5 {[%emt 0:02:42]} 19. Nxf6 {[%emt 0:02:51]} Rxf6 {[%emt 0:00:37]} 20. Qd1 {[%emt 0:00:39]} Qg6 {[%emt 0:11:12]} 21. Nf3 {[%emt 0:01:56]} Rf8 $11 {[%emt 0:09:54]} 22. Ra1 {[%emt 0:04:18]} Rxa1 {[%emt 0:00:33]} 23. Bxa1 {[%emt 0:00:01]} Nc5 {[%emt 0:03:06]} 24. d4 {[%emt 0:04:08]} exd4 {[%emt 0:00:19]} 25. Bxd4 {[%emt 0:00:22]} Bg4 {[%emt 0:00:44]} 26. h3 {[%emt 0:07:27]} Be6 {[%emt 0:00:48]} 27. g4 {[%emt 0:10:35]} Bxc4 {[%emt 0:05:47]} 28. Re1 {[%emt 0:00:04]} Be6 {[%emt 0:01:53]} 29. Bxc5 {[%emt 0:00:30]} dxc5 {[%emt 0:00:09]} 30. Ne5 {[%emt 0:04:17]} Qg5 {[%emt 0:02:26]} 31. Nd7 {[%emt 0:02:58]} Re8 {[%emt 0:01:35]} 32. h4 {[%emt 0:01:55]} Qxh4 {[%emt 0:02:07]} 33. Nxc5 {[%emt 0:00:13]} Rd8 {[%emt 0:00:17]} 34. Qf3 {[%emt 0:01:55]} Bxg4 {[%emt 0:00:35]} 35. Qxf4 {[%emt 0:00:45]} Rf8 {[%emt 0:00:22]} 36. Qe3 {[%emt 0:00:33]} b6 {[%emt 0:00:31]} 37. Nd3 {[%emt 0:01:21]} Bd7 {[%emt 0:01:18]} 38. Rb1 {[%emt 0:00:50]} Bd4 {[%emt 0:01:22]} 39. Qd2 {[%emt 0:01:04]} Bf5 {[%emt 0:00:41]} 40. Rb2 {[%emt 0:00:47]} Bxd3 {[%emt 0:00:42]} 41. Rb4 {[%emt 0:00:43]} Bxf2+ {[%emt 0:00:47]} 42. Qxf2 {[%emt 0:00:01]} Qxf2+ {[%emt 0:00:07]} 0-1

[Event "GER-chT States Women 2022"]
[Site "Braunfels"]
[Date "2022.06.17"]
[Round "2.27"]
[White "Gressmann, Hanna"]
[Black "Bazzazi, Elnaz"]
[Result "0-1"]
[ECO "C51"]
[WhiteElo "1892"]
[BlackElo "1749"]
[Annotator "NA RC"]
[PlyCount "54"]
[EventDate "2022.06.15"]
[EventType "swiss"]
[EventCountry "GER"]
[SourceTitle "playchess.com"]
[Source "ChessBase"]
[SourceQuality "1"]
[TimeControl "40/5400+30:1800+30"]

1. e4 {[%emt 0:00:04]} e5 {[%emt 0:00:06]} 2. Nf3 {[%emt 0:00:05]} Nc6 {[%emt 0:00:06]} 3. Bc4 {[%emt 0:00:06]} Bc5 {[%emt 0:00:29]} 4. b4 {[%emt 0:00:20]} Bxb4 {[%emt 0:00:12]} 5. c3 {[%emt 0:00:07]} Be7 {[%emt 0:02:20]} 6. d4 {[%emt 0:00:58]} Bf6 {[%emt 0:04:07]} 7. Qb3 {[%emt 0:04:01]} Qe7 {[%emt 0:01:52]} 8. Ba3 {[%emt 0:04:03]} d6 {[%emt 0:00:17]} 9. O-O {[%emt 0:04:04]} exd4 {[%emt 0:12:36]} 10. e5 {[%emt 0:11:32]} Nxe5 {[%emt 0:00:23]} 11. Nxe5 {[%emt 0:02:47]} Bxe5 {[%emt 0:01:27]} 12. cxd4 {[%emt 0:05:33]} Bxd4 {[%emt 0:01:44]} 13. Qa4+ {[%emt 0:04:20]} Kf8 {[%emt 0:03:43]} 14. Nd2 {[%emt 0:01:32]} Bxa1 {[%emt 0:00:13]} 15. Rxa1 {[%emt 0:00:04]} Bd7 {[%emt 0:03:36]} 16. Qb3 {[%emt 0:01:44]} Bc6 {[%emt 0:00:16]} 17. Qg3 {[%emt 0:01:08]} Re8 $19 {[%emt 0:03:47]} 18. Nb3 {[%emt 0:03:02]} h5 {[%emt 0:04:06]} 19. Bb2 {[%emt 0:01:25]} Nf6 {[%emt 0:01:03]} 20. Nd4 {[%emt 0:03:18]} Qe4 {[%emt 0:02:36]} 21. h3 {[%emt 0:06:35]} h4 {[%emt 0:00:16]} 22. Qh2 {[%emt 0:02:05]} Rh5 {[%emt 0:02:08]} 23. Kf1 {[%emt 0:01:48]} Bd5 {[%emt 0:04:14]} 24. Be2 {[%emt 0:01:32]} Rg5 {[%emt 0:01:40]} 25. Bf3 {[%emt 0:02:01]} Qd3+ {[%emt 0:00:49]} 26. Be2 {[%emt 0:00:04]} Rxe2 {[%emt 0:00:20]} 27. Nxe2 {[%emt 0:00:05]} Bxg2+ {[%emt 0:00:17]} 0-1

[Event "GER-chT States Women 2022"]
[Site "Braunfels"]
[Date "2022.06.17"]
[Round "2.28"]
[White "Ramm, Madlen"]
[Black "Falke, Ornella"]
[Result "0-1"]
[ECO "B23"]
[WhiteElo "1732"]
[BlackElo "1844"]
[Annotator "NA RC"]
[PlyCount "88"]
[EventDate "2022.06.15"]
[EventType "swiss"]
[EventCountry "GER"]
[SourceTitle "playchess.com"]
[Source "ChessBase"]
[SourceQuality "1"]
[TimeControl "40/5400+30:1800+30"]

1. e4 {[%emt 0:00:03]} c5 {[%emt 0:00:12]} 2. Nc3 {[%emt 0:00:14]} d6 {[%emt 0:00:25]} 3. f4 {[%emt 0:01:03]} Nc6 {[%emt 0:00:43]} 4. Bb5 {[%emt 0:00:37]} e6 {[%emt 0:02:00]} 5. Nf3 {[%emt 0:02:46]} Nge7 {[%emt 0:00:31]} 6. d3 {[%emt 0:03:03]} a6 {[%emt 0:01:56]} 7. Bxc6+ {[%emt 0:00:28]} Nxc6 {[%emt 0:00:07]} 8. O-O {[%emt 0:02:08]} g6 {[%emt 0:05:00]} 9. Be3 {[%emt 0:02:48]} Bg7 {[%emt 0:00:51]} 10. Bf2 {[%emt 0:03:12]} O-O {[%emt 0:01:38]} 11. Qd2 {[%emt 0:04:47]} b5 {[%emt 0:02:05]} 12. Rab1 {[%emt 0:03:45]} Qc7 {[%emt 0:14:05]} 13. Ne2 {[%emt 0:06:59]} Ne7 $11 {[%emt 0:11:41]} (13... a5 $15 {should be considered.}) 14. c3 {[%emt 0:07:55]} Bb7 {[%emt 0:01:03]} 15. Ng3 {[%emt 0:01:03]} Rad8 {[%emt 0:08:03]} 16. Qe2 {[%emt 0:03:55]} Rfe8 {[%emt 0:12:28]} 17. Rfc1 {[%emt 0:02:10]} f5 {[%emt 0:01:22]} 18. Ng5 {[%emt 0:07:47]} Bc8 {[%emt 0:02:03]} 19. Qc2 {[%emt 0:04:23]} h6 {[%emt 0:00:32]} 20. Nf3 {[%emt 0:00:49]} Kh7 {[%emt 0:00:55]} 21. Re1 {[%emt 0:02:21]} fxe4 {[%emt 0:03:47]} 22. dxe4 {[%emt 0:01:53]} Rf8 {[%emt 0:00:56]} 23. Be3 {[%emt 0:02:11]} Bb7 {[%emt 0:01:21]} 24. Re2 {[%emt 0:01:20]} Rf7 {[%emt 0:03:10]} 25. Rf1 {[%emt 0:00:35]} a5 {[%emt 0:01:36]} 26. Ref2 {[%emt 0:01:44]} d5 {[%emt 0:01:30]} 27. e5 {[%emt 0:00:54]} Bf8 {[%emt 0:02:33]} 28. Nh4 {[%emt 0:03:48]} Nf5 {[%emt 0:02:14]} 29. Nhxf5 {[%emt 0:01:39]} gxf5 {[%emt 0:00:06]} 30. Qe2 {[%emt 0:00:52]} Ba6 {[%emt 0:02:44]} 31. Re1 {[%emt 0:04:56]} Be7 {[%emt 0:01:09]} 32. Qh5 {[%emt 0:01:11]} Rg7 {[%emt 0:00:15]} 33. Rf3 {[%emt 0:04:16]} Bb7 {[%emt 0:00:57]} 34. Rf2 {[%emt 0:02:40]} Rdg8 {[%emt 0:00:33]} 35. Qe2 {[%emt 0:01:00]} Bh4 {[%emt 0:00:47]} 36. Qxb5 {[%emt 0:01:52]} Bxg3 {[%emt 0:01:45]} 37. hxg3 {[%emt 0:00:10]} d4 {[%emt 0:02:29]} 38. cxd4 {[%emt 0:00:56]} Rxg3 {[%emt 0:00:14]} 39. Ree2 {[%emt 0:02:21]} cxd4 {[%emt 0:02:38]} 40. Rc2 {[%emt 0:01:38]} Qg7 {[%emt 0:00:17]} 41. Qxa5 {[%emt 0:33:13]} dxe3 {[%emt 0:36:35]} 42. Rfe2 {[%emt 0:00:25]} Bxg2 {[%emt 0:03:59]} 43. Rxg2 {[%emt 0:01:37]} Rxg2+ {[%emt 0:00:08]} 44. Kf1 {[%emt 0:00:08]} e2+ {[%emt 0:00:46]} 0-1

[Event "GER-chT States Women 2022"]
[Site "Braunfels"]
[Date "2022.06.17"]
[Round "2.29"]
[White "Mundt, Alexandra"]
[Black "Marx, Christina"]
[Result "1-0"]
[ECO "B32"]
[WhiteElo "1782"]
[BlackElo "1587"]
[Annotator "NA RC"]
[PlyCount "69"]
[EventDate "2022.06.15"]
[EventType "swiss"]
[EventCountry "GER"]
[SourceTitle "playchess.com"]
[Source "ChessBase"]
[SourceQuality "1"]
[TimeControl "40/5400+30:1800+30"]

1. e4 {[%emt 0:00:03]} c5 {[%emt 0:00:05]} 2. Nf3 {[%emt 0:00:04]} Nc6 {[%emt 0:00:09]} 3. d4 {[%emt 0:00:15]} cxd4 {[%emt 0:00:07]} 4. Nxd4 {[%emt 0:00:05]} d6 {[%emt 0:00:44]} 5. Nc3 {[%emt 0:01:05]} g6 {[%emt 0:02:49]} 6. Be3 {[%emt 0:02:45]} Bg7 {[%emt 0:00:14]} 7. Be2 {[%emt 0:01:38]} a6 {[%emt 0:00:37]} 8. h4 {[%emt 0:03:43]} e5 {[%emt 0:14:12]} 9. Nb3 {[%emt 0:00:41]} Nge7 {[%emt 0:04:39]} 10. g4 {[%emt 0:08:51]} h6 {[%emt 0:03:53]} 11. Qd2 {[%emt 0:06:51]} Be6 {[%emt 0:04:59]} 12. O-O-O {[%emt 0:12:55]} Qd7 {[%emt 0:04:44]} 13. g5 {[%emt 0:06:36]} h5 {[%emt 0:01:23]} 14. Qxd6 {[%emt 0:04:53]} Qxd6 {[%emt 0:03:05]} 15. Rxd6 {[%emt 0:00:09]} Bxb3 {[%emt 0:01:52]} 16. axb3 {[%emt 0:00:31]} Nd4 {[%emt 0:01:52]} 17. Bxd4 {[%emt 0:03:01]} exd4 {[%emt 0:00:06]} 18. Na4 {[%emt 0:04:43]} Be5 {[%emt 0:08:47]} 19. Rb6 {[%emt 0:00:50]} Nc8 {[%emt 0:10:33]} 20. Rxb7 {[%emt 0:02:14]} Nd6 {[%emt 0:00:07]} 21. Rb6 {[%emt 0:00:29]} Nxe4 {[%emt 0:00:55]} 22. Re1 {[%emt 0:08:17]} Bf4+ {[%emt 0:00:51]} 23. Kb1 {[%emt 0:00:16]} O-O {[%emt 0:04:13]} 24. Bc4 {[%emt 0:08:17]} Rae8 {[%emt 0:01:50]} 25. Rxg6+ {[%emt 0:04:05]} Kh7 {[%emt 0:01:25]} 26. Rh6+ {[%emt 0:00:05]} Kg7 {[%emt 0:00:03]} 27. Ka1 {[%emt 0:02:40]} f6 {[%emt 0:02:27]} 28. Rxh5 {[%emt 0:09:51]} fxg5 {[%emt 0:01:13]} 29. hxg5 {[%emt 0:00:50]} Nxg5 {[%emt 0:03:16]} 30. Rxe8 {[%emt 0:00:10]} Rxe8 {[%emt 0:00:04]} 31. Bxa6 {[%emt 0:00:42]} Kg6 {[%emt 0:00:49]} 32. Rh4 {[%emt 0:01:21]} Re1+ {[%emt 0:01:33]} 33. Ka2 {[%emt 0:00:03]} Be5 {[%emt 0:00:54]} 34. Bd3+ {[%emt 0:01:43]} Kg7 {[%emt 0:02:09]} 35. f4 {[%emt 0:00:10]} 1-0